[Event "Titled Tuesday Blitz November 07 Early 2023"]
[White "Zakhartsov, Vladimir"]
[Black "Gavrilov, Maxim"]
[WhiteFideId "4145097"]
[BlackFideId "24271454"]
[WhiteElo "2824"]
[BlackElo "2550"]
[Result "1-0"]
[Round "3"]
[TimeControl "180+1"]
[Date "2023.11.07"]
[WhiteClock "0:00:26"]
[BlackClock "0:00:00"]
[Board "43"]

1. d4 {[%clk 0:03:00]}  d5 {[%clk 0:02:59]} 2. c4 {[%clk 0:03:00]}  c6 {[%clk 0:03:00]} 3. Nf3 {[%clk 0:02:59]}  Nf6 {[%clk 0:02:59]} 4. Nbd2 {[%clk 0:02:57]}  e6 {[%clk 0:02:55]} 5. g3 {[%clk 0:02:55]}  Nbd7 {[%clk 0:02:55]} 6. Bg2 {[%clk 0:02:55]}  b6 {[%clk 0:02:52]} 7. O-O {[%clk 0:02:52]}  Bb7 {[%clk 0:02:52]} 8. Qc2 {[%clk 0:02:51]}  Be7 {[%clk 0:02:52]} 9. e4 {[%clk 0:02:50]}  dxe4 {[%clk 0:02:51]} 10. Nxe4 {[%clk 0:02:51]}  c5 {[%clk 0:02:48]} 11. Nxf6+ {[%clk 0:02:48]}  Nxf6 {[%clk 0:02:43]} 12. Qa4+ {[%clk 0:02:37]}  Qd7 {[%clk 0:02:39]} 13. Qxd7+ {[%clk 0:02:37]}  Nxd7 {[%clk 0:02:40]} 14. Re1 {[%clk 0:02:25]}  cxd4 {[%clk 0:02:38]} 15. Nxd4 {[%clk 0:02:24]}  Bxg2 {[%clk 0:02:38]} 16. Kxg2 {[%clk 0:02:25]}  Rc8 {[%clk 0:02:35]} 17. b3 {[%clk 0:02:24]}  Nc5 {[%clk 0:02:25]} 18. Rd1 {[%clk 0:02:15]}  Bf6 {[%clk 0:02:16]} 19. Bb2 {[%clk 0:02:12]}  Ke7 {[%clk 0:02:15]} 20. Rab1 {[%clk 0:01:59]}  Rhd8 {[%clk 0:02:09]} 21. Ba1 {[%clk 0:01:41]}  a6 {[%clk 0:02:03]} 22. Kf3 {[%clk 0:01:34]}  h5 {[%clk 0:01:51]} 23. Ke3 {[%clk 0:01:32]}  Nd7 {[%clk 0:01:31]} 24. Rd2 {[%clk 0:01:22]}  Ne5 {[%clk 0:01:28]} 25. h3 {[%clk 0:01:19]}  h4 {[%clk 0:01:20]} 26. f4 {[%clk 0:01:11]}  hxg3 {[%clk 0:00:54]} 27. fxe5 {[%clk 0:01:10]}  Bg5+ {[%clk 0:00:55]} 28. Ke2 {[%clk 0:01:10]}  Bxd2 {[%clk 0:00:55]} 29. Kxd2 {[%clk 0:01:11]}  Rh8 {[%clk 0:00:49]} 30. Rg1 {[%clk 0:01:03]}  Rxh3 {[%clk 0:00:47]} 31. Ne2 {[%clk 0:01:03]}  Rd8+ {[%clk 0:00:43]} 32. Ke1 {[%clk 0:00:45]}  g2 {[%clk 0:00:08]} 33. Bd4 {[%clk 0:00:32]}  Rd3 {[%clk 0:00:06]} 34. Bxb6 {[%clk 0:00:31]}  Rd1+ {[%clk 0:00:06]} 35. Kf2 {[%clk 0:00:31]}  Rxg1 {[%clk 0:00:04]} 36. Bxd8+ {[%clk 0:00:30]}  Kxd8 {[%clk 0:00:02]} 37. Nxg1 {[%clk 0:00:29]}  f6 {[%clk 0:00:01]} 38. Kxg2 {[%clk 0:00:28]}  fxe5 {[%clk 0:00:01]} 39. Kf3 {[%clk 0:00:27]}  Kd7 {[%clk 0:00:01]} 40. Ke4 {[%clk 0:00:27]}  Kd6 {[%clk 0:00:02]} 41. Nf3 {[%clk 0:00:27]}  Kc5 {[%clk 0:00:00]} 42. a3 {[%clk 0:00:26]} 1-0


[Site "https://www.chess.com"]

[Event "Titled Tuesday Blitz November 07 Early 2023"]
[White "Ziatdinov, Raset"]
[Black "CrazyAdvenTures"]
[WhiteFideId "2015323"]
[WhiteElo "2507"]
[BlackElo "2806"]
[Result "0-1"]
[Round "3"]
[TimeControl "180+1"]
[Date "2023.11.07"]
[WhiteClock "0:00:00"]
[BlackClock "0:00:07"]
[Board "49"]

1. e4 {[%clk 0:03:00]}  c5 {[%clk 0:02:59]} 2. Nf3 {[%clk 0:02:59]}  Nc6 {[%clk 0:02:58]} 3. d4 {[%clk 0:02:59]}  cxd4 {[%clk 0:02:59]} 4. Nxd4 {[%clk 0:02:57]}  e5 {[%clk 0:02:59]} 5. Nxc6 {[%clk 0:02:56]}  bxc6 {[%clk 0:03:00]} 6. Bc4 {[%clk 0:02:56]}  Nf6 {[%clk 0:02:59]} 7. Nc3 {[%clk 0:02:55]}  Bb4 {[%clk 0:02:57]} 8. O-O {[%clk 0:02:55]}  O-O {[%clk 0:02:52]} 9. Bg5 {[%clk 0:02:53]}  h6 {[%clk 0:02:48]} 10. Bh4 {[%clk 0:02:48]}  d6 {[%clk 0:02:30]} 11. Qd3 {[%clk 0:02:32]}  g5 {[%clk 0:02:08]} 12. Bg3 {[%clk 0:02:30]}  Qe7 {[%clk 0:01:51]} 13. Rad1 {[%clk 0:02:30]}  Bxc3 {[%clk 0:01:48]} 14. bxc3 {[%clk 0:02:27]}  Rd8 {[%clk 0:01:48]} 15. Rfe1 {[%clk 0:02:13]}  Be6 {[%clk 0:01:41]} 16. Bb3 {[%clk 0:02:10]}  a5 {[%clk 0:01:37]} 17. a4 {[%clk 0:01:50]}  Rab8 {[%clk 0:00:49]} 18. Qa6 {[%clk 0:01:47]}  Bxb3 {[%clk 0:00:46]} 19. cxb3 {[%clk 0:01:46]}  Rxb3 {[%clk 0:00:42]} 20. Qxa5 {[%clk 0:01:43]}  Rdb8 {[%clk 0:00:39]} 21. h4 {[%clk 0:01:23]}  Nh5 {[%clk 0:00:36]} 22. Rd3 {[%clk 0:01:05]}  gxh4 {[%clk 0:00:33]} 23. Bh2 {[%clk 0:00:58]}  Rb1 {[%clk 0:00:33]} 24. c4 {[%clk 0:00:57]}  R8b4 {[%clk 0:00:31]} 25. Rdd1 {[%clk 0:00:53]}  Rxd1 {[%clk 0:00:20]} 26. Qxb4 {[%clk 0:00:51]}  Rxe1+ {[%clk 0:00:17]} 27. Qxe1 {[%clk 0:00:50]}  Qa7 {[%clk 0:00:18]} 28. a5 {[%clk 0:00:48]}  Nf6 {[%clk 0:00:16]} 29. Kh1 {[%clk 0:00:42]}  Qc5 {[%clk 0:00:12]} 30. a6 {[%clk 0:00:31]}  Qa7 {[%clk 0:00:09]} 31. Qa5 {[%clk 0:00:29]}  Nxe4 {[%clk 0:00:09]} 32. Qd8+ {[%clk 0:00:22]}  Kg7 {[%clk 0:00:09]} 33. Bg1 {[%clk 0:00:19]}  Qxa6 {[%clk 0:00:07]} 34. Qxh4 {[%clk 0:00:18]}  Qxc4 {[%clk 0:00:08]} 35. Qg4+ {[%clk 0:00:17]}  Kh7 {[%clk 0:00:06]} 36. Qf5+ {[%clk 0:00:16]}  Kg7 {[%clk 0:00:06]} 37. Qg4+ {[%clk 0:00:16]}  Kf6 {[%clk 0:00:07]} 38. Qh4+ {[%clk 0:00:15]}  Ke6 {[%clk 0:00:07]} 39. Qg4+ {[%clk 0:00:15]}  Kd5 {[%clk 0:00:06]} 40. Qd1+ {[%clk 0:00:13]}  Qd4 {[%clk 0:00:04]} 41. Qb3+ {[%clk 0:00:13]}  Qc4 {[%clk 0:00:05]} 42. Qd1+ {[%clk 0:00:12]}  Ke6 {[%clk 0:00:05]} 43. Qg4+ {[%clk 0:00:11]}  Ke7 {[%clk 0:00:06]} 44. Qh4+ {[%clk 0:00:11]}  f6 {[%clk 0:00:07]} 45. Qxh6 {[%clk 0:00:11]}  Qf7 {[%clk 0:00:07]} 46. f3 {[%clk 0:00:05]}  Ng5 {[%clk 0:00:07]} 47. Bh2 {[%clk 0:00:02]}  Qh7 {[%clk 0:00:06]} 48. Qxh7+ {[%clk 0:00:02]}  Nxh7 {[%clk 0:00:07]} 49. f4 {[%clk 0:00:00]}  Ke6 {[%clk 0:00:07]} 0-1


[Site "https://www.chess.com"]

[Event "Titled Tuesday Blitz November 07 Early 2023"]
[White "Tsotsonava, Elene"]
[Black "Yeremyan_ChessMate"]
[WhiteFideId "13615939"]
[WhiteElo "2389"]
[BlackElo "2790"]
[Result "1/2-1/2"]
[Round "3"]
[TimeControl "180+1"]
[Date "2023.11.07"]
[WhiteClock "0:00:06"]
[BlackClock "0:00:10"]
[Board "53"]

1. Nf3 {[%clk 0:02:46]}  Nf6 {[%clk 0:02:59]} 2. c4 {[%clk 0:02:42]}  g6 {[%clk 0:03:00]} 3. Nc3 {[%clk 0:02:40]}  d5 {[%clk 0:02:59]} 4. cxd5 {[%clk 0:02:40]}  Nxd5 {[%clk 0:03:00]} 5. g3 {[%clk 0:02:39]}  Bg7 {[%clk 0:03:00]} 6. Bg2 {[%clk 0:02:38]}  O-O {[%clk 0:03:00]} 7. O-O {[%clk 0:02:38]}  c5 {[%clk 0:03:01]} 8. Nxd5 {[%clk 0:02:38]}  Qxd5 {[%clk 0:03:01]} 9. d3 {[%clk 0:02:39]}  Nc6 {[%clk 0:03:01]} 10. a3 {[%clk 0:02:34]}  Qh5 {[%clk 0:03:00]} 11. Rb1 {[%clk 0:02:30]}  Bf5 {[%clk 0:02:53]} 12. Be3 {[%clk 0:02:30]}  c4 {[%clk 0:02:52]} 13. dxc4 {[%clk 0:02:18]}  Bxb1 {[%clk 0:02:51]} 14. Qxb1 {[%clk 0:02:19]}  Rfd8 {[%clk 0:02:50]} 15. b4 {[%clk 0:02:18]}  Rac8 {[%clk 0:02:46]} 16. c5 {[%clk 0:02:13]}  Rd7 {[%clk 0:02:36]} 17. b5 {[%clk 0:01:56]}  Nd4 {[%clk 0:02:24]} 18. Bxd4 {[%clk 0:01:38]}  Bxd4 {[%clk 0:02:25]} 19. c6 {[%clk 0:01:38]}  bxc6 {[%clk 0:01:58]} 20. bxc6 {[%clk 0:01:39]}  Rdd8 {[%clk 0:01:55]} 21. Nxd4 {[%clk 0:01:27]}  Rxd4 {[%clk 0:01:54]} 22. Qb7 {[%clk 0:01:27]}  Rdd8 {[%clk 0:01:37]} 23. Qxa7 {[%clk 0:01:20]}  Qxe2 {[%clk 0:01:29]} 24. h4 {[%clk 0:01:17]}  Rd1 {[%clk 0:01:21]} 25. Rxd1 {[%clk 0:01:06]}  Qxd1+ {[%clk 0:01:22]} 26. Kh2 {[%clk 0:01:07]}  Qd6 {[%clk 0:01:19]} 27. Qb7 {[%clk 0:01:01]}  Rc7 {[%clk 0:01:13]} 28. Qb6 {[%clk 0:00:59]}  Rc8 {[%clk 0:01:03]} 29. a4 {[%clk 0:00:58]}  h5 {[%clk 0:00:40]} 30. a5 {[%clk 0:00:57]}  g5 {[%clk 0:00:41]} 31. hxg5 {[%clk 0:00:56]}  h4 {[%clk 0:00:41]} 32. a6 {[%clk 0:00:51]}  hxg3+ {[%clk 0:00:42]} 33. fxg3 {[%clk 0:00:51]}  Kg7 {[%clk 0:00:43]} 34. Qb2+ {[%clk 0:00:49]}  e5 {[%clk 0:00:43]} 35. a7 {[%clk 0:00:36]}  Rh8+ {[%clk 0:00:35]} 36. Kg1 {[%clk 0:00:36]}  Ra8 {[%clk 0:00:09]} 37. c7 {[%clk 0:00:20]}  Qxc7 {[%clk 0:00:09]} 38. Bxa8 {[%clk 0:00:20]}  Qxa7+ {[%clk 0:00:09]} 39. Kh2 {[%clk 0:00:19]}  Qxa8 {[%clk 0:00:08]} 40. Qxe5+ {[%clk 0:00:20]}  Kg8 {[%clk 0:00:09]} 41. Qf6 {[%clk 0:00:18]}  Qa2+ {[%clk 0:00:08]} 42. Kh3 {[%clk 0:00:18]}  Qc2 {[%clk 0:00:08]} 43. Kg4 {[%clk 0:00:18]}  Qe4+ {[%clk 0:00:08]} 44. Kh5 {[%clk 0:00:18]}  Qe2+ {[%clk 0:00:07]} 45. Kh4 {[%clk 0:00:17]}  Qh2+ {[%clk 0:00:07]} 46. Kg4 {[%clk 0:00:17]}  Qe2+ {[%clk 0:00:08]} 47. Qf3 {[%clk 0:00:17]}  Qe6+ {[%clk 0:00:08]} 48. Qf5 {[%clk 0:00:17]}  Qc4+ {[%clk 0:00:08]} 49. Kf3 {[%clk 0:00:17]}  Qc3+ {[%clk 0:00:08]} 50. Kf4 {[%clk 0:00:17]}  Qd4+ {[%clk 0:00:08]} 51. Qe4 {[%clk 0:00:18]}  Qd2+ {[%clk 0:00:08]} 52. Kg4 {[%clk 0:00:18]}  Qd1+ {[%clk 0:00:08]} 53. Kf5 {[%clk 0:00:17]}  Qd7+ {[%clk 0:00:08]} 54. Kf6 {[%clk 0:00:16]}  Qd6+ {[%clk 0:00:09]} 55. Kf5 {[%clk 0:00:15]}  Qg6+ {[%clk 0:00:10]} 56. Kf4 {[%clk 0:00:15]}  Qd6+ {[%clk 0:00:10]} 57. Qe5 {[%clk 0:00:14]}  Qd2+ {[%clk 0:00:10]} 58. Kf3 {[%clk 0:00:14]}  Qd3+ {[%clk 0:00:10]} 59. Kg2 {[%clk 0:00:14]}  Qc2+ {[%clk 0:00:10]} 60. Kh3 {[%clk 0:00:14]}  Qc8+ {[%clk 0:00:11]} 61. g4 {[%clk 0:00:14]}  Qd7 {[%clk 0:00:10]} 62. Qf5 {[%clk 0:00:13]}  Qd6 {[%clk 0:00:09]} 63. Kg2 {[%clk 0:00:12]}  Qd2+ {[%clk 0:00:09]} 64. Kg3 {[%clk 0:00:12]}  Qe3+ {[%clk 0:00:09]} 65. Kg2 {[%clk 0:00:12]}  Qe2+ {[%clk 0:00:10]} 66. Kg3 {[%clk 0:00:12]}  Qe7 {[%clk 0:00:09]} 67. Kf3 {[%clk 0:00:08]}  Qa3+ {[%clk 0:00:09]} 68. Kf4 {[%clk 0:00:08]}  Qd6+ {[%clk 0:00:09]} 69. Qe5 {[%clk 0:00:08]}  Qd2+ {[%clk 0:00:10]} 70. Kf5 {[%clk 0:00:08]}  Qd7+ {[%clk 0:00:08]} 71. Kf4 {[%clk 0:00:06]}  Qd2+ {[%clk 0:00:08]} 72. Kf3 {[%clk 0:00:07]}  Qd3+ {[%clk 0:00:08]} 73. Qe3 {[%clk 0:00:06]}  Qd5+ {[%clk 0:00:08]} 74. Kg3 {[%clk 0:00:07]}  Qd6+ {[%clk 0:00:08]} 75. Kh3 {[%clk 0:00:07]}  Qc6 {[%clk 0:00:07]} 76. Kg3 {[%clk 0:00:03]}  Qd6+ {[%clk 0:00:07]} 77. Qf4 {[%clk 0:00:03]}  Qd3+ {[%clk 0:00:07]} 78. Kg2 {[%clk 0:00:03]}  Qg6 {[%clk 0:00:08]} 79. Qf5 {[%clk 0:00:03]}  Qc6+ {[%clk 0:00:08]} 80. Kg3 {[%clk 0:00:03]}  Qd6+ {[%clk 0:00:09]} 81. Kh3 {[%clk 0:00:04]}  Qc6 {[%clk 0:00:07]} 82. Qf6 {[%clk 0:00:04]}  Qh1+ {[%clk 0:00:07]} 83. Kg3 {[%clk 0:00:04]}  Qg1+ {[%clk 0:00:07]} 84. Kf3 {[%clk 0:00:04]}  Qf1+ {[%clk 0:00:08]} 85. Ke4 {[%clk 0:00:04]}  Qe2+ {[%clk 0:00:08]} 86. Kf4 {[%clk 0:00:05]}  Qf2+ {[%clk 0:00:08]} 87. Ke4 {[%clk 0:00:05]}  Qe2+ {[%clk 0:00:09]} 88. Kf4 {[%clk 0:00:06]}  Qf2+ {[%clk 0:00:09]} 89. Ke4 {[%clk 0:00:06]}  Qc2+ {[%clk 0:00:09]} 90. Kf3 {[%clk 0:00:06]}  Qd3+ {[%clk 0:00:09]} 91. Kf4 {[%clk 0:00:07]}  Qd2+ {[%clk 0:00:10]} 92. Ke4 {[%clk 0:00:06]}  Qe2+ {[%clk 0:00:10]} 1/2-1/2


[Site "https://www.chess.com"]

[Event "Titled Tuesday Blitz November 07 Early 2023"]
[White "Javakhadze, Zurab"]
[Black "missponyo10"]
[WhiteFideId "13603647"]
[WhiteElo "2789"]
[BlackElo "2022"]
[Result "1-0"]
[Round "3"]
[TimeControl "180+1"]
[Date "2023.11.07"]
[WhiteClock "0:00:07"]
[BlackClock "0:00:11"]
[Board "54"]

1. Nf3 {[%clk 0:03:00]}  d5 {[%clk 0:02:58]} 2. g3 {[%clk 0:03:00]}  e6 {[%clk 0:02:55]} 3. Bg2 {[%clk 0:02:58]}  Nf6 {[%clk 0:02:56]} 4. O-O {[%clk 0:02:58]}  c6 {[%clk 0:02:56]} 5. c4 {[%clk 0:02:57]}  Nbd7 {[%clk 0:02:54]} 6. b3 {[%clk 0:02:57]}  Bd6 {[%clk 0:02:54]} 7. Bb2 {[%clk 0:02:57]}  O-O {[%clk 0:02:54]} 8. d3 {[%clk 0:02:56]}  e5 {[%clk 0:02:52]} 9. cxd5 {[%clk 0:02:51]}  cxd5 {[%clk 0:02:53]} 10. Nc3 {[%clk 0:02:50]}  Re8 {[%clk 0:02:34]} 11. Rc1 {[%clk 0:02:48]}  a6 {[%clk 0:02:33]} 12. Nd2 {[%clk 0:02:38]}  Nb6 {[%clk 0:02:30]} 13. a4 {[%clk 0:02:11]}  a5 {[%clk 0:02:23]} 14. Nb5 {[%clk 0:02:10]}  Bb8 {[%clk 0:02:22]} 15. Qc2 {[%clk 0:02:05]}  Re6 {[%clk 0:02:06]} 16. Qb1 {[%clk 0:01:56]}  Re8 {[%clk 0:02:02]} 17. Nf3 {[%clk 0:01:49]}  Bd7 {[%clk 0:02:00]} 18. Qa1 {[%clk 0:01:39]}  Bxb5 {[%clk 0:01:57]} 19. axb5 {[%clk 0:01:39]}  Nbd7 {[%clk 0:01:55]} 20. d4 {[%clk 0:01:27]}  e4 {[%clk 0:01:53]} 21. Ne5 {[%clk 0:01:27]}  Nxe5 {[%clk 0:01:52]} 22. dxe5 {[%clk 0:01:27]}  Nd7 {[%clk 0:01:52]} 23. Rfd1 {[%clk 0:01:17]}  Nxe5 {[%clk 0:01:38]} 24. Bxe4 {[%clk 0:01:14]}  Qb6 {[%clk 0:01:27]} 25. Bg2 {[%clk 0:00:27]}  Ng4 {[%clk 0:01:18]} 26. Rd4 {[%clk 0:00:24]}  h5 {[%clk 0:01:09]} 27. e3 {[%clk 0:00:20]}  Be5 {[%clk 0:01:06]} 28. Rxd5 {[%clk 0:00:20]}  Bxb2 {[%clk 0:01:02]} 29. Qxb2 {[%clk 0:00:20]}  Nf6 {[%clk 0:01:02]} 30. Rg5 {[%clk 0:00:18]}  Rad8 {[%clk 0:00:59]} 31. h4 {[%clk 0:00:17]}  Rd6 {[%clk 0:00:56]} 32. Bf3 {[%clk 0:00:15]}  Red8 {[%clk 0:00:53]} 33. Qe5 {[%clk 0:00:13]}  Re6 {[%clk 0:00:48]} 34. Qc5 {[%clk 0:00:11]}  Qxc5 {[%clk 0:00:40]} 35. Rcxc5 {[%clk 0:00:11]}  g6 {[%clk 0:00:39]} 36. Bxb7 {[%clk 0:00:10]}  Rb6 {[%clk 0:00:36]} 37. Bf3 {[%clk 0:00:10]}  Rdb8 {[%clk 0:00:35]} 38. Rc6 {[%clk 0:00:10]}  Rxc6 {[%clk 0:00:30]} 39. bxc6 {[%clk 0:00:09]}  Rxb3 {[%clk 0:00:22]} 40. Rc5 {[%clk 0:00:08]}  Ne8 {[%clk 0:00:22]} 41. c7 {[%clk 0:00:08]}  Nxc7 {[%clk 0:00:22]} 42. Rxc7 {[%clk 0:00:09]}  a4 {[%clk 0:00:21]} 43. Bd5 {[%clk 0:00:09]}  Rb1+ {[%clk 0:00:21]} 44. Kg2 {[%clk 0:00:09]}  a3 {[%clk 0:00:20]} 45. Bxf7+ {[%clk 0:00:09]}  Kf8 {[%clk 0:00:20]} 46. Be6 {[%clk 0:00:08]}  Ra1 {[%clk 0:00:18]} 47. Ra7 {[%clk 0:00:08]}  Ke8 {[%clk 0:00:17]} 48. e4 {[%clk 0:00:09]}  Kf8 {[%clk 0:00:16]} 49. e5 {[%clk 0:00:09]}  Ke8 {[%clk 0:00:17]} 50. Bd5 {[%clk 0:00:05]}  Kd8 {[%clk 0:00:15]} 51. e6 {[%clk 0:00:06]}  Ke8 {[%clk 0:00:12]} 52. Bc6+ {[%clk 0:00:06]}  Kd8 {[%clk 0:00:11]} 53. e7+ {[%clk 0:00:07]}  Kc8 {[%clk 0:00:11]} 54. e8=Q# {[%clk 0:00:07]} 1-0


[Site "https://www.chess.com"]

[Event "Titled Tuesday Blitz November 07 Early 2023"]
[White "Skuhala, Barbara"]
[Black "Andreikin, Dmitry"]
[WhiteFideId "14605465"]
[BlackFideId "4158814"]
[WhiteElo "2238"]
[BlackElo "3110"]
[Result "0-1"]
[Round "3"]
[TimeControl "180+1"]
[Date "2023.11.07"]
[WhiteClock "0:01:02"]
[BlackClock "0:01:56"]
[Board "55"]

1. e4 {[%clk 0:03:00]}  c5 {[%clk 0:02:55]} 2. Nf3 {[%clk 0:03:00]}  g6 {[%clk 0:02:51]} 3. d4 {[%clk 0:02:57]}  cxd4 {[%clk 0:02:51]} 4. Nxd4 {[%clk 0:02:57]}  Nf6 {[%clk 0:02:51]} 5. Nc3 {[%clk 0:02:57]}  d6 {[%clk 0:02:47]} 6. Be3 {[%clk 0:02:56]}  Nc6 {[%clk 0:02:47]} 7. Bc4 {[%clk 0:02:55]}  Ng4 {[%clk 0:02:36]} 8. Nxc6 {[%clk 0:02:20]}  bxc6 {[%clk 0:02:33]} 9. Qd2 {[%clk 0:02:08]}  Nxe3 {[%clk 0:02:30]} 10. Qxe3 {[%clk 0:02:08]}  Bg7 {[%clk 0:02:29]} 11. Bb3 {[%clk 0:02:05]}  O-O {[%clk 0:02:28]} 12. h4 {[%clk 0:02:01]}  Qb6 {[%clk 0:02:25]} 13. Qd2 {[%clk 0:01:56]}  h5 {[%clk 0:02:12]} 14. O-O {[%clk 0:01:43]}  Bg4 {[%clk 0:02:07]} 15. Rfe1 {[%clk 0:01:36]}  a5 {[%clk 0:02:05]} 16. a4 {[%clk 0:01:31]}  Be6 {[%clk 0:01:58]} 17. Bxe6 {[%clk 0:01:10]}  fxe6 {[%clk 0:01:58]} 18. Rab1 {[%clk 0:01:02]}  Rxf2 {[%clk 0:01:56]} 0-1


[Site "https://www.chess.com"]

[Event "Titled Tuesday Blitz November 07 Early 2023"]
[White "Shimanov, Aleksandr"]
[Black "Yen, William"]
[WhiteFideId "4198603"]
[BlackFideId "30932025"]
[WhiteElo "2969"]
[BlackElo "2673"]
[Result "1/2-1/2"]
[Round "3"]
[TimeControl "180+1"]
[Date "2023.11.07"]
[WhiteClock "0:00:05"]
[BlackClock "0:00:09"]
[Board "57"]

1. e4 {[%clk 0:03:00]}  e6 {[%clk 0:02:47]} 2. d4 {[%clk 0:02:58]}  d5 {[%clk 0:02:47]} 3. e5 {[%clk 0:02:59]}  c5 {[%clk 0:02:46]} 4. c3 {[%clk 0:02:58]}  Nc6 {[%clk 0:02:47]} 5. Nf3 {[%clk 0:02:43]}  Bd7 {[%clk 0:02:46]} 6. Bd3 {[%clk 0:02:34]}  cxd4 {[%clk 0:02:45]} 7. cxd4 {[%clk 0:02:34]}  Qb6 {[%clk 0:02:43]} 8. Bc2 {[%clk 0:02:28]}  Nb4 {[%clk 0:02:37]} 9. Nc3 {[%clk 0:02:14]}  Nxc2+ {[%clk 0:02:33]} 10. Qxc2 {[%clk 0:02:15]}  Rc8 {[%clk 0:02:34]} 11. O-O {[%clk 0:02:14]}  Ne7 {[%clk 0:02:31]} 12. Be3 {[%clk 0:02:13]}  Nf5 {[%clk 0:02:29]} 13. a3 {[%clk 0:01:53]}  Be7 {[%clk 0:02:28]} 14. Qd2 {[%clk 0:01:43]}  O-O {[%clk 0:02:26]} 15. Rfd1 {[%clk 0:01:23]}  Rc4 {[%clk 0:02:18]} 16. Rab1 {[%clk 0:01:21]}  Rfc8 {[%clk 0:02:16]} 17. g4 {[%clk 0:01:16]}  Nxe3 {[%clk 0:02:11]} 18. fxe3 {[%clk 0:01:17]}  Qa5 {[%clk 0:02:05]} 19. g5 {[%clk 0:00:48]}  Bxa3 {[%clk 0:02:01]} 20. Ra1 {[%clk 0:00:47]}  Rxc3 {[%clk 0:01:59]} 21. bxc3 {[%clk 0:00:46]}  Qxc3 {[%clk 0:01:58]} 22. Kf2 {[%clk 0:00:34]}  b5 {[%clk 0:01:54]} 23. Ne1 {[%clk 0:00:30]}  b4 {[%clk 0:01:52]} 24. Nd3 {[%clk 0:00:30]}  Ba4 {[%clk 0:01:31]} 25. Qxc3 {[%clk 0:00:25]}  Rxc3 {[%clk 0:01:32]} 26. Rd2 {[%clk 0:00:25]}  Bc2 {[%clk 0:01:28]} 27. Nc5 {[%clk 0:00:24]}  a5 {[%clk 0:01:25]} 28. h4 {[%clk 0:00:15]}  g6 {[%clk 0:01:25]} 29. Ra2 {[%clk 0:00:08]}  Bf5 {[%clk 0:01:22]} 30. Ra1 {[%clk 0:00:08]}  Kg7 {[%clk 0:01:21]} 31. Ke2 {[%clk 0:00:08]}  h6 {[%clk 0:01:21]} 32. Na4 {[%clk 0:00:07]}  Rc2 {[%clk 0:01:19]} 33. Nc5 {[%clk 0:00:06]}  hxg5 {[%clk 0:01:17]} 34. hxg5 {[%clk 0:00:06]}  Bg4+ {[%clk 0:01:15]} 35. Kd3 {[%clk 0:00:06]}  Bf5+ {[%clk 0:01:13]} 36. Ke2 {[%clk 0:00:06]}  Bg4+ {[%clk 0:00:28]} 37. Ke1 {[%clk 0:00:06]}  Rc3 {[%clk 0:00:26]} 38. Kf2 {[%clk 0:00:06]}  Bf5 {[%clk 0:00:25]} 39. Kf3 {[%clk 0:00:05]}  Bc2 {[%clk 0:00:22]} 40. Rh2 {[%clk 0:00:04]}  Be4+ {[%clk 0:00:15]} 41. Nxe4 {[%clk 0:00:04]}  dxe4+ {[%clk 0:00:16]} 42. Kxe4 {[%clk 0:00:05]}  b3 {[%clk 0:00:15]} 43. Rxa3 {[%clk 0:00:04]}  b2 {[%clk 0:00:14]} 44. Rxc3 {[%clk 0:00:04]}  b1=Q+ {[%clk 0:00:14]} 45. Rd3 {[%clk 0:00:04]}  a4 {[%clk 0:00:13]} 46. d5 {[%clk 0:00:03]}  exd5+ {[%clk 0:00:12]} 47. Kd4 {[%clk 0:00:03]}  a3 {[%clk 0:00:10]} 48. Rxa3 {[%clk 0:00:03]}  Qb6+ {[%clk 0:00:07]} 49. Kc3 {[%clk 0:00:02]}  Qxe3+ {[%clk 0:00:05]} 50. Kb4 {[%clk 0:00:03]}  Qxe5 {[%clk 0:00:06]} 51. Rha2 {[%clk 0:00:02]}  Qxg5 {[%clk 0:00:06]} 52. Kc5 {[%clk 0:00:02]}  Qe5 {[%clk 0:00:06]} 53. Rd3 {[%clk 0:00:02]}  f5 {[%clk 0:00:05]} 54. Rad2 {[%clk 0:00:02]}  Qe4 {[%clk 0:00:03]} 55. Rd4 {[%clk 0:00:02]}  Kf6 {[%clk 0:00:04]} 56. Rxe4 {[%clk 0:00:02]}  dxe4 {[%clk 0:00:05]} 57. Kd4 {[%clk 0:00:03]}  g5 {[%clk 0:00:05]} 58. Re2 {[%clk 0:00:02]}  g4 {[%clk 0:00:05]} 59. Rh2 {[%clk 0:00:02]}  Kg5 {[%clk 0:00:06]} 60. Ke3 {[%clk 0:00:02]}  g3 {[%clk 0:00:04]} 61. Rh8 {[%clk 0:00:03]}  Kg4 {[%clk 0:00:05]} 62. Rg8+ {[%clk 0:00:02]}  Kh3 {[%clk 0:00:06]} 63. Rg5 {[%clk 0:00:03]}  g2 {[%clk 0:00:05]} 64. Kf2 {[%clk 0:00:03]}  f4 {[%clk 0:00:05]} 65. Rh5+ {[%clk 0:00:02]}  Kg4 {[%clk 0:00:05]} 66. Rh8 {[%clk 0:00:03]}  f3 {[%clk 0:00:06]} 67. Rg8+ {[%clk 0:00:04]}  Kf4 {[%clk 0:00:06]} 68. Rf8+ {[%clk 0:00:04]}  Ke5 {[%clk 0:00:07]} 69. Re8+ {[%clk 0:00:05]}  Kd4 {[%clk 0:00:08]} 70. Rd8+ {[%clk 0:00:05]}  Ke5 {[%clk 0:00:08]} 71. Rg8 {[%clk 0:00:05]}  Kf4 {[%clk 0:00:08]} 72. Rf8+ {[%clk 0:00:06]}  Ke5 {[%clk 0:00:09]} 73. Rg8 {[%clk 0:00:05]}  Kf4 {[%clk 0:00:09]} 1/2-1/2


[Site "https://www.chess.com"]